bitfinex-derivatives/quotes_SOLF0:USTF0_20250924
["timestamp","ask_amount","ask_price","bid_price","bid_amount"]
[1758684689883,4.2857,209.92,209.78,194.82]
[1758684690086,4.2857,209.92,209.77,11.6885]
[1758684690393,4.2857,209.92,209.78,194.66]
[1758684690890,4.2862,209.9,209.79,194.34]
[1758684691089,4.2862,209.9,209.77,7.4]
[1758684691284,4.2862,209.9,209.77,201.58]
[1758684691480,7.36,209.89,209.68,7.4]
[1758684691684,66.6581,209.95,209.72,7.4]
[1758684691685,66.6693,209.91,209.72,7.4]
[1758684692081,74.0181,209.95,209.73,260.6852]
[1758684692286,7.36,209.95,209.76,7.4]
[1758684692487,66.6627,209.93,209.77,193.78]
[1758684692682,74.0164,209.95,209.77,193.78]
[1758684693088,7.36,209.95,209.77,193.78]
[1758684693283,74.0167,209.95,209.78,193.34]
[1758684693882,4.2858,209.92,209.77,4.2885]
[1758684694095,4.2858,209.92,209.76,7.4]
[1758684694297,4.2865,209.88,209.76,7.4]
[1758684694797,66.6629,209.93,209.76,7.4]
[1758684694991,66.6668,209.92,209.76,7.4]
[1758684695190,66.6668,209.92,209.77,192.4]
[1758684695395,66.674,209.9,209.76,7.4]
[1758684695699,66.6751,209.89,209.76,7.4]
[1758684696686,66.6697,209.91,209.76,7.4]
[1758684697096,66.663,209.93,209.76,7.4]
[1758684697599,7.36,209.95,209.78,66.7094]
[1758684697898,7.36,209.95,209.8,4.288]
[1758684698396,11.645,209.95,209.82,4.2875]
[1758684698596,7.36,209.95,209.82,4.2875]
[1758684699197,7.36,209.95,209.79,4.2881]
[1758684699391,7.36,209.95,209.78,66.7089]
[1758684699994,7.36,209.95,209.83,4.2873]
[1758684700194,4.2843,209.99,209.83,4.2873]
[1758684700401,4.2843,209.99,209.82,66.6966]
[1758684700595,4.2843,209.99,209.85,4.287]
[1758684700801,7.36,210.01,209.85,194.087]
[1758684700998,7.36,210.01,209.85,189.8]
[1758684701197,7.36,210.01,209.87,4.2865]
[1758684701595,7.36,210.01,209.86,196.9]
[1758684701801,4.2835,210.03,209.89,4.2861]
[1758684701999,66.6339,210.02,209.89,189.22]
[1758684702197,66.6245,210.05,209.89,189.22]
[1758684702706,3.32835059,210.04,209.89,188.88]
[1758684703091,3.32835059,210.04,209.87,4.2866]
[1758684703296,3.32835059,210.04,209.89,192.8862]
[1758684704000,3.32835059,210.04,209.89,4.2862]
[1758684704200,7.36,210.07,209.9,188.3]
[1758684704394,16.37386798,210.19,209.88,66.6777]
[1758684704395,7.36,210.18,209.98,7.4]
[1758684704597,7.36,210.18,209.99,360.26]
[1758684704793,3.16352673,210.17,209.99,426.9028]
[1758684704999,3.32835059,210.15,209.98,7.4]
[1758684705203,7.36,210.13,209.98,7.4]
[1758684705902,7.36,210.08,209.9,187.86]
[1758684706706,7.36,210.08,209.91,70.9542]
[1758684707210,7.36,210.08,209.91,70.9529]
[1758684707408,10.68835059,210.14,209.95,7.4]
[1758684707711,69.76440293,210.13,209.95,7.4]
[1758684707906,3.16520293,210.12,209.95,7.4]
[1758684708100,4.2817,210.11,209.95,7.4]
[1758684708304,4.2817,210.11,209.95,194.22]
[1758684708503,4.2817,210.11,209.95,7.4]
[1758684708809,4.2817,210.11,209.96,4.2847]
[1758684709111,14.96955059,210.14,209.96,186.54]
[1758684709310,3.16727498,210.13,209.96,186.54]
[1758684709510,66.6149,210.08,209.95,7.4]
[1758684709715,3.32835059,210.09,209.95,7.4]
[1758684709909,3.32835059,210.13,209.97,66.6494]
[1758684710106,3.32835059,210.13,209.98,4.2842]
[1758684710304,7.36,210.14,209.99,74.0431]
[1758684710506,86.08529153,210.24,210.02,70.9171]
[1758684710507,3.32835059,210.18,210.02,70.9171]
[1758684710704,3.32835059,210.18,210.0,252.5595]
[1758684711008,3.32835059,210.18,210.04,66.6271]
[1758684711307,3.32835059,210.18,210.04,7.4]
[1758684712008,3.32835059,210.19,210.04,192.72]
[1758684712216,3.32835059,210.19,210.04,7.4]
[1758684712409,3.32835059,210.19,210.04,192.56]
[1758684712605,3.32835059,210.19,210.0,185.02]
[1758684712606,66.5869,210.17,210.0,185.02]
[1758684712805,7.36,210.18,210.0,185.02]
[1758684713202,7.36,210.18,210.02,66.6339]
[1758684713607,7.36,210.18,210.04,4.283]
[1758684713809,3.32835059,210.19,210.06,66.6203]
[1758684714012,7.33,210.24,210.07,66.6176]
[1758684714209,3.16776406,210.23,210.07,66.6176]
[1758684714410,7.33,210.24,210.1,4.2818]
[1758684714611,7.33,210.24,210.06,7.66]
[1758684714808,3.16914761,210.23,210.06,7.66]
[1758684715008,66.5705,210.22,210.06,7.66]
[1758684715217,3.1703174,210.21,210.06,7.66]
[1758684715421,3.32835059,210.14,209.94,7.66]
[1758684715715,11.6113,210.13,209.94,7.66]
[1758684716104,3.16963963,210.12,209.94,7.66]
[1758684716306,11.6113,210.13,209.94,7.66]
[1758684716515,11.6113,210.13,209.97,4.2845]
[1758684716516,3.17210495,210.12,209.97,4.2845]
[1758684716817,7.33,210.13,209.95,66.6554]
[1758684717111,3.17484209,210.12,209.94,7.66]
[1758684717316,3.17484209,210.11,209.95,183.54]
[1758684717708,4.2815,210.12,209.94,7.66]
[1758684717709,66.6024,210.12,209.94,7.66]
[1758684717915,4.282,210.1,209.94,7.66]
[1758684718315,3.17757293,210.09,209.94,7.66]
[1758684718516,11.6114,210.13,209.96,4.2847]
[1758684718713,69.78097835,210.12,209.95,182.64]
[1758684718913,3.17837835,210.11,209.95,182.64]
[1758684719109,69.94055059,210.09,209.94,7.66]
[1758684719313,7.33,210.08,209.94,7.66]
[1758684719720,11.6124,210.08,209.94,7.66]
[1758684720110,7.33,210.08,209.94,7.66]
[1758684720314,7.33,210.08,209.94,74.3185]
[1758684720516,7.33,210.15,210.0,74.2993]
[1758684720718,7.33,210.15,210.0,74.2997]
[1758684721219,7.33,210.15,210.02,66.6339]
[1758684721421,360.0,210.19,210.02,66.6339]
[1758684721721,3.17625537,210.18,210.02,66.6339]
[1758684722019,360.0,210.19,210.02,66.6339]
[1758684722321,3.17637273,210.18,210.02,66.6339]
[1758684722521,66.5844,210.18,210.0,7.66]
[1758684722718,360.0,210.19,210.0,74.3001]
[1758684723018,4.2806,210.17,210.02,4.2834]
[1758684723217,360.0,210.19,210.0,74.3001]
[1758684723715,73.9243,210.15,210.0,7.66]
[1758684723921,7.33,210.15,210.0,7.66]
[1758684724122,66.6059,210.11,209.94,7.66]
[1758684724423,7.33,210.08,209.94,7.66]
[1758684725717,7.33,210.08,209.94,11.9451]
[1758684725915,66.6183,210.07,209.94,7.66]
[1758684726318,66.6281,210.04,209.86,7.66]
[1758684726522,4.2838,210.01,209.86,7.66]
[1758684726915,66.6441,209.99,209.86,7.66]
[1758684727120,66.6533,209.96,209.83,359.96]
[1758684727315,66.6538,209.96,209.8,7.66]
[1758684727522,66.6673,209.92,209.8,7.66]
[1758684727720,7.33,209.92,209.79,66.7063]
[1758684727915,7.33,209.92,209.78,66.7095]
[1758684727916,7.33,209.92,209.82,4.2875]
[1758684728317,7.33,209.92,209.78,7.66]
[1758684728628,66.6754,209.89,209.72,7.66]
[1758684728818,66.6692,209.91,209.73,66.7257]
[1758684729020,4.2864,209.89,209.74,4.2891]
[1758684729920,4.2867,209.87,209.72,186.74]
[1758684730122,4.2867,209.87,209.72,7.66]
[1758684730320,11.6167,209.87,209.72,7.66]
[1758684730721,11.6167,209.87,209.73,4.2894]
[1758684731025,4.2872,209.85,209.72,7.66]
[1758684731225,7.33,209.77,209.62,7.66]
[1758684731518,5.57052261,209.83,209.64,66.7537]
[1758684731719,7.33,209.84,209.68,74.4016]
[1758684731915,37.2730109,209.87,209.72,7.66]
[1758684732117,7.33,209.91,209.76,66.7167]
[1758684732321,7.33,209.91,209.77,7.66]
[1758684732725,74.0005,209.91,209.77,7.66]
[1758684733021,7.33,209.91,209.77,7.66]
[1758684733220,7.29,209.97,209.78,66.7102]
[1758684733426,66.6534,209.96,209.77,7.66]
[1758684734326,7.29,209.91,209.77,7.66]
[1758684734529,66.6728,209.9,209.72,177.94]
[1758684735022,70.9658,209.88,209.71,7.75]
[1758684735524,70.9589,209.9,209.71,7.75]
[1758684735720,7.29,209.91,209.72,66.7291]
[1758684735924,73.9594,209.91,209.71,74.4823]
[1758684736123,78.2453,209.91,209.72,4.2897]
[1758684736526,11.5759,209.91,209.72,181.5897]
[1758684736820,70.9629,209.89,209.72,177.3]
[1758684737024,66.6828,209.87,209.72,177.3]
[1758684737219,7.29,209.86,209.72,177.3]
[1758684737827,7.29,209.86,209.73,66.7264]
[1758684738120,4.2874,209.84,209.71,7.75]
[1758684738322,7.29,209.86,209.69,66.7385]
[1758684738525,7.29,209.86,209.71,66.7326]
[1758684738721,73.9541,209.93,209.74,4.2893]
[1758684738925,73.9541,209.93,209.71,66.7327]
[1758684739126,7.29,209.93,209.74,66.7231]
[1758684739327,11.5754,209.93,209.74,71.0124]
[1758684739925,78.239,209.93,209.74,71.0124]
[1758684740227,78.239,209.93,209.71,4.2899]
[1758684740228,7.29,209.87,209.71,4.2899]
[1758684740423,7.29,209.87,209.71,71.0223]
[1758684740629,7.29,209.87,209.75,66.7194]
[1758684740922,7.29,209.87,209.74,66.7223]
[1758684741827,4.2858,209.92,209.7,7.75]
[1758684741828,5.19701174,210.07,209.77,200.1337]
[1758684742023,5.57052261,210.22,209.96,66.6536]
[1758684742218,3.17779602,210.19,209.98,5.57052261]
[1758684742431,4.2805,210.18,209.98,5.57052261]
[1758684742630,66.5904,210.16,209.98,5.57052261]
[1758684742827,66.5986,210.14,209.97,7.75]
[1758684743031,4.2815,210.13,209.97,7.75]
[1758684744433,4.2819,210.11,209.97,7.75]
[1758684744627,74.3069,210.14,209.97,7.75]
[1758684744829,7.71,210.14,209.97,7.75]
[1758684745228,4.2817,210.12,209.97,7.75]
[1758684745629,70.8847,210.12,209.97,7.75]
[1758684746228,4.2817,210.12,209.97,7.75]
[1758684747239,4.2817,210.12,209.97,12.0345]
[1758684747441,7.71,210.09,209.93,360.26]
[1758684747640,66.6071,210.11,209.78,4.2884]
[1758684747641,7.71,209.93,209.78,4.2884]
[1758684748141,66.6664,209.92,209.74,7.82]
[1758684748338,7.71,209.93,209.77,66.7136]
[1758684748542,66.6675,209.92,209.74,7.82]
[1758684748741,66.6702,209.91,209.74,7.82]
[1758684749041,4.2864,209.89,209.74,7.82]
[1758684749638,66.6445,209.99,209.81,7.82]
[1758684749838,66.6478,209.98,209.81,7.82]
[1758684750130,70.9388,209.96,209.81,7.82]
[1758684750338,66.6581,209.95,209.81,7.82]
[1758684750738,66.6638,209.93,209.81,7.82]
[1758684750946,66.6638,209.93,209.78,176.24]
[1758684750947,66.6697,209.91,209.78,176.24]
[1758684751443,66.676,209.89,209.78,176.24]
[1758684752047,4.2866,209.88,209.78,176.24]
[1758684752544,4.2866,209.88,209.75,7.82]
[1758684753243,70.9725,209.86,209.75,7.82]
[1758684753640,74.391,209.88,209.69,7.82]
[1758684753641,66.6916,209.84,209.69,7.82]
[1758684753835,7.71,209.88,209.7,71.0258]
[1758684754240,66.6824,209.87,209.69,7.82]
[1758684754445,7.71,209.88,209.69,74.5588]
[1758684754645,7.71,209.88,209.71,4.2898]
[1758684754946,7.71,209.95,209.73,66.7262]
[1758684755149,7.71,209.95,209.75,71.0082]
[1758684755649,11.9951,209.95,209.75,4.2889]
[1758684756541,78.6519,209.95,209.75,4.2889]
[1758684756938,70.9488,209.93,209.75,4.2889]
[1758684757149,66.6696,209.91,209.74,7.82]
[1758684757346,66.6762,209.89,209.74,7.82]
[1758684757653,180.89,209.9,209.74,7.82]
[1758684758553,180.89,209.9,209.63,67.57052261]
[1758684758554,4.2925,209.59,209.53,14.35]
[1758684758748,7.71,209.58,209.38,7.82]
[1758684759047,66.7603,209.63,209.38,7.82]
[1758684759048,4.2916,209.63,209.44,4.2954]
[1758684759453,4.2916,209.63,209.44,179.4554]
[1758684759653,7.71,209.64,209.47,71.104]
[1758684759854,74.4662,209.64,209.45,7.82]
[1758684760155,4.2916,209.63,209.45,7.82]
[1758684760849,4.2922,209.61,209.45,7.82]
[1758684761056,12.90701174,210.03,209.63,7.82]
[1758684761358,7.71,210.1,209.9,7.82]
[1758684761547,7.71,210.08,209.85,66.6878]
[1758684761853,70.9293,209.99,209.82,7.82]
[1758684762049,66.6603,209.94,209.79,177.98]
[1758684762250,66.6677,209.92,209.74,7.82]
[1758684762449,70.9563,209.91,209.74,7.82]
[1758684762755,66.6794,209.88,209.74,7.82]
[1758684763255,66.6794,209.88,209.7,178.06]
[1758684763456,66.6861,209.86,209.7,178.06]
[1758684763750,66.6952,209.83,209.7,178.06]
[1758684763952,66.702,209.81,209.61,4.2918]
[1758684764160,66.7047,209.8,209.61,4.2918]
[1758684764756,4.2887,209.78,209.6,7.82]
[1758684765254,66.7029,209.81,209.6,78.88]
[1758684765455,176.98,209.8,209.6,78.88]
[1758684765655,7.71,209.83,209.62,66.7609]
[1758684765861,70.9904,209.81,209.62,4.2916]
[1758684766152,66.7079,209.79,209.6,7.82]
[1758684766453,71.021,209.72,209.55,360.34]
[1758684766658,7.71,209.76,209.57,66.776]
[1758684766858,7.71,209.76,209.58,7.82]
[1758684767248,66.7425,209.68,209.55,360.34]
[1758684767650,66.7425,209.68,209.51,7.82]
[1758684767856,66.7499,209.66,209.51,7.82]
[1758684768758,66.7653,209.61,209.45,175.88]
[1758684768957,66.7593,209.63,209.45,175.88]
[1758684769357,66.765,209.61,209.45,175.88]
[1758684769863,71.0571,209.61,209.45,175.88]
[1758684770960,71.0645,209.59,209.45,175.88]
[1758684771260,66.7846,209.55,209.45,175.88]
[1758684771558,71.0779,209.55,209.37,7.82]
[1758684771759,4.2933,209.55,209.37,7.82]
[1758684771962,7.71,209.58,209.41,7.82]
[1758684771963,74.4851,209.58,209.41,7.82]
[1758684772163,66.7815,209.56,209.41,7.82]
[1758684772462,71.0746,209.56,209.41,7.82]
[1758684773858,174.52,209.65,209.41,74.6473]
[1758684773859,66.752,209.65,209.41,74.6473]
[1758684774058,66.7648,209.61,209.44,7.97]
[1758684774457,173.92,209.62,209.44,7.97]
[1758684774659,66.7615,209.62,209.44,7.97]
[1758684774866,7.45,209.65,209.45,71.1109]
[1758684775161,66.7553,209.64,209.44,7.97]
[1758684775466,7.45,209.58,209.38,7.97]
[1758684775659,66.7844,209.55,209.38,7.97]
[1758684776757,7.45,209.58,209.41,66.8271]
[1758684776956,66.7488,209.66,209.44,66.817]
[1758684777158,146.1648,209.68,209.35,7.97]
[1758684777159,66.7807,209.56,209.35,7.97]
[1758684777361,7.45,209.55,209.35,74.8172]
[1758684777858,7.45,209.55,209.37,71.1375]
[1758684778570,7.45,209.55,209.36,66.844]
[1758684778769,7.45,209.55,209.37,66.8412]
[1758684779165,74.2355,209.55,209.35,7.97]
[1758684779362,66.8064,209.48,209.26,74.8462]
[1758684779564,66.8064,209.48,209.26,7.97]
[1758684779565,66.8158,209.45,209.26,7.97]
[1758684779764,241.1764,209.45,209.26,7.97]
[1758684779961,7.45,209.47,209.26,7.97]
[1758684780163,181.67,209.47,209.27,66.8728]
[1758684780370,7.45,209.47,209.3,7.97]
[1758684780667,7.45,209.47,209.31,71.1583]
[1758684781168,7.45,209.47,209.31,4.298]
[1758684781470,7.45,209.55,209.39,66.8317]
[1758684781667,7.45,209.55,209.4,7.97]
[1758684782064,7.45,209.55,209.29,240.9858]
[1758684782065,7.45,209.46,209.29,7.97]
[1758684782475,66.8256,209.42,209.21,7.97]
[1758684782771,7.45,209.46,209.26,66.8761]
[1758684783268,7.45,209.46,209.34,66.8502]
[1758684783567,7.45,209.54,209.35,7.97]
[1758684783772,74.2375,209.54,209.35,7.97]
[1758684784167,74.2375,209.54,209.29,7.97]
[1758684784168,74.2529,209.49,209.29,7.97]
[1758684784368,74.2529,209.49,209.29,74.8363]
[1758684784564,74.2529,209.49,209.21,200.677]
[1758684784565,7.45,209.47,209.18,7.97]
[1758684784770,7.45,209.33,209.14,66.9145]
[1758684785069,7.45,209.33,209.12,74.8901]
[1758684785070,66.8611,209.31,209.12,7.97]
[1758684785374,66.867,209.29,209.12,7.97]
[1758684785668,7.45,209.33,209.12,74.8899]
[1758684785973,7.45,209.33,209.14,4.3014]
[1758684786173,7.45,209.33,209.16,66.9081]
[1758684786874,7.45,209.33,209.18,71.2024]
[1758684787070,7.45,209.33,209.21,66.8912]
[1758684787272,7.45,209.33,209.22,4.2998]
[1758684787469,7.45,209.33,209.18,74.8718]
[1758684787874,7.45,209.33,209.2,66.8954]
[1758684788067,7.45,209.33,209.18,74.8718]
[1758684788262,7.45,209.33,209.19,66.8986]
[1758684788469,7.45,209.33,209.18,7.97]
[1758684788871,7.45,209.33,209.19,66.8982]
[1758684789173,66.8386,209.38,209.18,74.8713]
[1758684789372,66.8456,209.36,209.18,7.97]
[1758684789578,74.2977,209.35,209.18,7.97]
[1758684789875,7.45,209.35,209.18,74.8709]
[1758684790072,7.45,209.35,209.22,66.8888]
[1758684790268,7.45,209.35,209.23,66.8854]
[1758684790465,7.45,209.41,209.27,66.8725]
[1758684790669,7.45,209.41,209.29,4.2984]
[1758684790870,7.45,209.48,209.32,66.8549]
[1758684791069,7.45,209.48,209.33,66.8527]
[1758684791373,7.45,209.48,209.33,71.1502]
[1758684791575,7.45,209.48,209.34,66.8495]
[1758684791878,7.45,209.48,209.35,4.2971]
[1758684792270,7.45,209.48,209.32,66.8565]
[1758684792473,7.45,209.48,209.35,71.1445]
[1758684793470,7.45,209.48,209.35,66.8474]
[1758684793677,10.91449311,209.54,209.37,66.8411]
[1758684793874,10.91449311,209.54,209.35,66.8474]
[1758684793875,7.57,209.54,209.41,66.8274]
[1758684794073,7.57,209.6,209.44,4.2953]
[1758684794278,74.3383,209.6,209.41,7.9]
[1758684794483,7.57,209.6,209.43,66.822]
[1758684794687,7.57,209.6,209.44,4.2954]
[1758684794870,7.57,209.6,209.41,74.7284]
[1758684794871,7.57,209.6,209.42,66.825]
[1758684795075,7.57,209.6,209.43,4.2955]
[1758684795383,7.57,209.6,209.46,7.9]
[1758684795574,66.7436,209.68,209.46,7.9]
[1758684795575,7.57,209.68,209.46,7.9]
[1758684795778,7.57,209.68,209.53,66.7895]
[1758684795983,7.57,209.68,209.52,7.9]
[1758684796279,66.7204,209.75,209.56,7.9]
[1758684796481,78.5864,209.73,209.56,7.9]
[1758684797176,11.8597,209.73,209.56,7.9]
[1758684797481,78.6032,209.68,209.5,50.0]
[1758684797680,66.7493,209.66,209.5,50.0]
[1758684797980,66.7559,209.64,209.5,50.0]
[1758684798181,3.34449311,209.67,209.5,50.0]
[1758684798381,66.7529,209.65,209.5,50.0]
[1758684798578,173.94,209.7,209.5,50.0]
[1758684798579,360.98,209.74,209.55,74.6826]
[1758684798782,427.7036,209.74,209.55,74.6826]
[1758684799181,66.7419,209.69,209.55,7.9]
[1758684799483,7.57,209.65,209.5,50.0]
[1758684799980,66.7556,209.64,209.5,50.0]
[1758684800182,7.57,209.65,209.5,50.0]
[1758684800872,78.6133,209.65,209.5,50.0]
[1758684801483,4.2919,209.62,209.5,50.0]
[1758684801779,3.34449311,209.59,209.5,36.44973984]
[1758684801981,3.34449311,209.53,209.35,7.9]
[1758684802181,70.0485,209.57,209.35,79.0438]
[1758684802376,3.34449311,209.56,209.37,66.8409]
[1758684802679,3.34449311,209.56,209.4,4.2963]
[1758684803282,3.27,209.57,209.42,71.1208]
[1758684803480,66.7652,209.61,209.43,7.67]
[1758684803679,66.7474,209.67,209.49,7.67]
[1758684803984,70.10489311,209.63,209.49,7.67]
[1758684804284,3.34449311,209.63,209.49,7.67]
[1758684804680,66.7651,209.61,209.49,7.67]
[1758684805376,4.2905,209.69,209.51,66.7949]
[1758684805784,71.0302,209.69,209.5,66.7992]
[1758684805977,71.0302,209.69,209.5,4.2942]
[1758684806179,73.34709311,209.65,209.49,7.67]
[1758684806486,66.7656,209.61,209.49,7.67]
[1758684807088,4.2921,209.61,209.49,7.67]
[1758684807588,71.0572,209.61,209.49,7.67]
[1758684807787,4.2921,209.61,209.49,7.67]
[1758684808380,4.2914,209.64,209.49,7.67]
[1758684808985,73.34709311,209.65,209.49,7.67]
[1758684808986,6.59449311,209.65,209.49,7.67]
[1758684809388,66.7657,209.61,209.49,7.67]
[1758684809588,4.2925,209.59,209.49,7.67]
[1758684809885,66.7621,209.62,209.43,74.4911]
[1758684810087,4.2923,209.6,209.44,4.2954]
[1758684810787,66.7808,209.56,209.45,7.67]
[1758684811291,4.2931,209.56,209.45,7.67]
[1758684814494,434.20129311,209.67,209.48,7.67]
[1758684814694,66.7523,209.65,209.48,7.67]
[1758684814993,3.17474718,209.64,209.48,11.9644]
[1758684815193,66.7523,209.65,209.48,11.9644]
[1758684815794,4.2917,209.63,209.48,11.9644]
[1758684815994,66.7617,209.62,209.48,7.67]
[1758684816196,66.7565,209.64,209.48,7.67]
[1758684816590,367.45449311,209.67,209.48,7.67]
[1758684816891,70.0029,209.65,209.48,7.67]
[1758684817296,177.0413,209.65,209.49,4.2944]
[1758684817687,177.0413,209.65,209.48,7.67]
[1758684817688,66.7616,209.62,209.48,7.67]
[1758684817996,66.7551,209.64,209.48,7.67]
[1758684818397,4.2923,209.6,209.48,7.67]
[1758684819594,3.25,209.6,209.45,66.8151]
[1758684819799,37.66050228,209.64,209.47,66.8089]
[1758684820000,3.25,209.65,209.52,7.67]
[1758684820793,7.5412,209.65,209.52,7.67]
[1758684821402,3.25,209.65,209.53,4.2936]
[1758684821599,37.95666911,209.67,209.53,66.7901]
[1758684821795,4.2906,209.68,209.52,7.67]
[1758684822598,3.25,209.65,209.52,7.67]
[1758684823201,66.766,209.61,209.42,7.67]
[1758684823496,70.0189,209.6,209.42,7.67]
[1758684824007,4.2935,209.54,209.42,7.67]
[1758684825411,3.25,209.51,209.35,175.69]
[1758684825602,66.8033,209.49,209.35,175.69]
[1758684826101,66.8158,209.45,209.26,66.8734]
[1758684826294,66.8197,209.44,209.29,7.67]
[1758684826501,73.41029311,209.45,209.29,7.67]
[1758684826803,10.88979311,209.45,209.3,4.2983]
[1758684827006,6.59449311,209.45,209.3,4.2983]
[1758684827300,66.8194,209.44,209.29,7.67]
[1758684827508,66.8258,209.42,209.29,7.67]
[1758684828000,66.8198,209.44,209.29,7.67]
[1758684828207,167.62,209.44,209.29,7.67]
[1758684828504,4.2968,209.38,209.26,167.6]
[1758684829410,4.2968,209.38,209.23,7.67]
[1758684829909,4.2968,209.38,208.7,12.93411628]
[1758684829910,3.25,209.3,209.14,7.67]
[1758684830498,66.8756,209.27,209.14,7.67]
[1758684830704,66.8867,209.23,209.06,7.67]
[1758684830900,3.25,209.17,208.98,7.67]
[1758684831205,3.25,209.17,209.01,66.9561]
[1758684831407,70.1555,209.17,209.0,7.67]
[1758684832203,70.1554,209.17,209.0,7.67]
[1758684832410,66.9155,209.14,209.0,7.67]
[1758684832916,66.9277,209.1,208.96,360.9]
[1758684833305,66.9277,209.1,208.95,167.68]
[1758684833506,66.9404,209.06,208.95,167.68]
[1758684833711,66.9349,209.08,208.95,167.68]
[1758684834013,66.9311,209.09,208.95,167.68]
[1758684834308,66.9311,209.09,208.94,7.67]
[1758684834309,66.9369,209.07,208.94,7.67]
[1758684834613,66.9501,209.03,208.88,167.68]
[1758684835009,66.9564,209.01,208.88,167.68]
[1758684835211,70.30089311,209.01,208.88,167.68]
[1758684835715,3.34449311,209.01,208.87,7.37]
[1758684835910,234.6801,209.0,208.87,7.37]
[1758684836208,66.9659,208.98,208.87,7.37]
[1758684836413,66.9659,208.98,208.77,7.37]
[1758684836605,3.28,209.07,208.81,3.34449311]
[1758684836806,66.9438,209.05,208.87,7.37]
[1758684837011,7.5831,209.07,208.87,7.37]
[1758684837212,66.9442,209.05,208.87,7.37]
[1758684837611,242.2599,209.07,208.87,7.37]
[1758684837916,66.9431,209.06,208.91,7.37]
[1758684838116,41.21172388,209.07,208.91,7.37]
[1758684838413,108.14932388,209.07,208.91,7.37]
[1758684838615,66.9474,209.04,208.85,10.43]
[1758684838803,167.78,209.03,208.85,10.43]
[1758684839409,3.34449311,209.06,208.85,10.43]
[1758684839410,3.34449311,209.06,208.85,3.06]
[1758684839609,3.34449311,209.06,208.86,7.37]
[1758684840317,3.34449311,209.06,208.86,78.6807]
[1758684840614,41.21172388,209.07,208.89,7.37]
[1758684840811,37.93172388,209.07,208.93,7.37]
[1758684841013,3.34449311,209.11,208.93,7.37]
[1758684841312,3.28,209.08,208.93,7.37]
[1758684841515,66.9593,209.0,208.87,7.37]
[1758684841715,66.9667,208.98,208.77,70.37619311]
[1758684842013,66.9667,208.98,208.78,7.37]
[1758684842014,66.9726,208.96,208.78,7.37]
[1758684842212,66.9627,208.99,208.89,7.37]
[1758684842416,66.9627,208.99,208.64,201.2214]
[1758684842417,70.2684,208.91,208.75,7.37]
[1758684842612,361.5,209.03,208.75,7.37]
[1758684842613,167.82,208.96,208.76,67.035]
[1758684842825,66.9893,208.91,208.75,7.37]
[1758684843008,3.28,208.92,208.75,74.4093]